bitfinex-derivatives/quotes_SOLF0:USTF0_20250127
["timestamp","ask_amount","ask_price","bid_price","bid_amount"]
[1738000904367,26.48824832,226.85,226.68,2.8065]
[1738000904671,29.90824832,226.85,226.68,2.8065]
[1738000905065,4.4103,226.84,226.68,2.8065]
[1738000905270,0.03167911,226.79,226.74,0.03012043]
[1738000905670,4.44297911,226.79,226.74,0.03012043]
[1738000905965,0.03167911,226.79,226.74,0.03012043]
[1738000906165,4.44297911,226.79,226.74,0.03012043]
[1738000906474,0.03167911,226.79,226.74,0.03012043]
[1738000907764,4.4119,226.76,226.74,0.03012043]
[1738000907968,0.03167911,226.79,226.62,27.92034832]
[1738000908274,26.48824832,226.8,226.62,1.4321]
[1738000908971,0.02909802,226.73,226.69,0.02969371]
[1738000912272,0.02909802,226.73,226.55,2.8064]
[1738000912577,26.48824832,226.76,226.56,1.4549]
[1738000912875,26.48824832,226.72,226.56,1.4549]
[1738000913577,0.02891227,226.66,226.59,4.415]
[1738000913977,0.02891227,226.66,226.56,1.4549]
[1738000914175,0.02891227,226.66,226.59,4.4151]
[1738000914576,0.02891227,226.66,226.56,1.4549]
[1738000915877,0.02891227,226.66,226.62,4.4141]
[1738000916177,0.02891227,226.66,226.56,1.4549]
[1738000916481,0.02891227,226.66,226.56,27.94314832]
[1738000916681,0.02891227,226.66,226.56,1.4549]
[1738000917074,0.02891227,226.66,226.61,4.4147]
[1738000918277,0.02891227,226.66,226.56,1.4549]
[1738000918578,16.49531001,226.66,226.55,1.3808]
[1738000919074,16.46639774,226.62,226.49,1.3698]
[1738000919275,16.46639774,226.58,226.49,1.3698]
[1738000919582,16.46639774,226.62,226.47,1.3337]
[1738000919783,4.4149,226.6,226.48,1.3698]
[1738000919973,16.46639774,226.66,226.48,1.3698]
[1738000920178,0.03262197,226.56,226.52,0.03096951]
[1738000920482,16.46639774,226.66,226.54,4.4156]
[1738000920782,0.03290044,226.56,226.52,0.02822383]
[1738000920976,4.4145,226.61,226.48,1.3698]
[1738000921170,0.03335956,226.56,226.52,0.03096951]
[1738000921576,2.513,226.7,226.52,0.03096951]
[1738000922082,26.75614509,226.75,226.55,26.75614509]
[1738000922575,26.75614509,226.79,226.59,26.75614509]
[1738000922780,0.03221,226.67,226.63,0.03094132]
[1738000922980,0.03221,226.67,226.63,26.78708641]
[1738000923177,1.4391,226.81,226.63,26.75614509]
[1738000923384,26.75614509,226.83,226.63,26.75614509]
[1738000923775,26.75614509,226.79,226.6,2.7982]
[1738000923983,26.75614509,226.75,226.6,2.7982]
[1738000924379,0.029654,226.72,226.67,0.0321929]
[1738000924873,26.75614509,226.75,226.6,2.7982]
[1738000925082,26.75614509,226.71,226.67,8.971e-05]
[1738000925275,4.4131,226.68,226.67,8.971e-05]
[1738000925481,26.75614509,226.71,226.54,4.4157]
[1738000925783,0.40786,226.68,226.54,4.4157]
[1738000926184,4.39180307,226.67,226.57,4.4151]
[1738000926383,0.03163152,226.63,226.59,0.03286271]
[1738000927179,4.4145,226.61,226.59,6.271e-05]
[1738000927585,26.75614509,226.52,226.44,1.3428]
[1738000927783,26.75614509,226.56,226.44,1.3428]
[1738000928086,26.75614509,226.65,226.46,26.75614509]
[1738000928281,4.4135,226.67,226.55,4.4157]
[1738000928485,0.40786,226.68,226.5,26.75614509]
[1738000928785,4.4092,226.89,226.76,4.4114]
[1738000929085,0.88152327,226.88,226.83,26.75614509]
[1738000929286,26.75614509,227.26,226.83,26.75614509]
[1738000929287,0.02791804,226.85,226.83,26.75614509]
[1738000929482,3.54,227.09,226.84,1.3876]
[1738000929483,4.4063,227.04,226.84,1.3876]
[1738000929682,7.4408,227.14,226.89,26.75614509]
[1738000929886,4.4053,227.09,226.91,4.4085]
[1738000930186,26.75614509,227.1,226.9,1.355]
[1738000930386,30.65694509,227.14,226.93,26.75614509]
[1738000930581,0.03141716,227.02,226.98,0.03296898]
[1738000930986,26.75614509,227.18,226.97,26.75614509]
[1738000931683,1.3952,227.2,227.01,26.75614509]
[1738000932189,1.3952,227.2,227.02,1.398]
[1738000932487,0.03079909,227.13,227.08,0.0298173]
[1738000933284,30.29614509,227.3,227.09,26.75614509]
[1738000933485,0.80608392,227.29,227.09,26.75614509]
[1738000933688,4.4026,227.24,227.09,26.75614509]
[1738000933887,26.75614509,227.3,227.09,26.75614509]
[1738000934187,0.80599573,227.29,227.09,26.75614509]
[1738000934382,26.78634961,227.22,227.17,2.721e-05]
[1738000934587,26.78634961,227.22,227.03,1.3273]
[1738000934588,26.75614509,227.18,227.03,1.3273]
[1738000934786,4.4054,227.1,227.03,1.3273]
[1738000934985,26.75614509,227.14,226.94,1.333]
[1738000935181,30.27614509,227.18,226.97,26.75614509]
[1738000935485,26.75614509,227.14,226.94,3.5962902]
[1738000935688,0.0283728,227.1,227.05,0.02938301]
[1738000936190,0.0283728,227.1,227.05,26.7855281]
[1738000936380,0.0283728,227.1,227.05,0.02938301]
[1738000939387,4.4055,227.09,227.05,0.02938301]
[1738000939582,0.0283728,227.1,227.05,0.02938301]
[1738000939890,4.4059,227.07,227.05,0.02938301]
[1738000940294,0.0283728,227.1,227.05,0.02938301]
[1738000942183,0.0283728,227.1,227.05,26.7855281]
[1738000942485,4.4058,227.08,227.05,0.02938301]
[1738000942688,0.0283728,227.1,227.05,0.02938301]
[1738000942985,26.78451789,227.1,226.94,1.382]
[1738000943185,26.75614509,227.06,226.94,1.382]
[1738000943487,3.5,227.12,226.9,26.75614509]
[1738000943693,3.5,227.12,226.94,26.75614509]
[1738000944087,3.5,227.12,227.01,0.03012248]
[1738000944291,0.02865592,227.05,227.01,0.03012248]
[1738000945392,4.4067,227.03,227.01,0.03012248]
[1738000945594,26.75614509,227.03,226.86,1.4469]
[1738000946494,1.1282,227.04,226.86,28.20304509]
[1738000946695,0.03293069,226.97,226.92,4.44033063]
[1738000946897,0.03293069,226.97,226.92,0.03163063]
[1738000948296,0.03293069,226.97,226.95,4.4081]
[1738000948792,0.03293069,226.97,226.92,0.03163063]
[1738000948793,1.4352,227.1,226.94,26.75614509]
[1738000949002,8.8014,227.34,227.01,26.75614509]
[1738000949003,2.5646,227.22,227.01,26.75614509]
[1738000949185,26.75614509,227.19,226.97,26.75614509]
[1738000949491,26.75614509,227.15,226.93,26.75614509]
[1738000949891,0.03176739,227.06,227.02,0.0330526]
[1738000950395,1.3927,227.21,227.02,0.0330526]
[1738000950695,1.3927,227.21,227.04,4.4063]
[1738000950894,1.3927,227.21,227.01,26.75614509]
[1738000951191,26.75614509,227.1,226.89,26.75614509]
[1738000951386,2.488,227.09,226.89,26.75614509]
[1738000951588,0.02838469,227.02,226.97,0.03319204]
[1738000951888,0.02838469,227.02,226.97,26.78933713]
[1738000953088,1.3262,227.18,226.97,26.78933713]
[1738000953399,1.3262,227.18,227.05,4.4061]
[1738000953697,1.3262,227.18,227.01,26.75614509]
[1738000953899,4.4045,227.15,227.06,4.406]
[1738000954194,0.03167793,227.12,227.07,0.03345904]
[1738000956494,0.03167793,227.12,226.93,26.75614509]
[1738000956696,26.75614509,227.11,226.93,26.75614509]
[1738000957095,26.75614509,227.15,226.93,26.75614509]
[1738000957499,4.4057,227.08,226.95,4.4081]
[1738000957701,0.03080097,227.06,227.02,0.02841674]
[1738000957998,0.80523568,227.14,227.02,0.02841674]
[1738000958198,4.4065,227.04,227.02,0.02841674]
[1738000958495,0.02790143,227.06,227.02,0.02841674]
[1738000958699,4.4066,227.03,227.02,0.02841674]
[1738000958899,0.02790143,227.06,226.9,1.3965]
[1738000959199,2.5409,227.06,226.89,2.7123]
[1738000959397,2.5409,227.06,226.9,1.3568]
[1738000959597,4.4068,227.03,226.95,4.4081]
[1738000959899,26.75614509,227.11,226.93,26.75614509]
[1738000960100,0.02995761,227.01,226.97,0.02921828]
[1738000960598,1.3189,227.1,226.93,26.75614509]
[1738000960904,1.222,227.14,226.97,26.78592397]
[1738000961205,26.75614509,227.19,226.97,26.75614509]
[1738000961403,1.3189,227.2,226.93,26.75614509]
[1738000961404,1.3189,227.2,227.01,26.75614509]
[1738000961602,1.3189,227.2,227.02,4.0313]
[1738000961804,1.4415,227.19,227.02,4.0313]
[1738000962204,0.03087614,227.13,227.08,0.02859418]
[1738000962607,0.03087614,227.13,227.09,26.75614509]
[1738000962804,0.03087614,227.13,227.08,0.02859418]
[1738000963311,4.4053,227.11,227.08,0.02859418]
[1738000963604,0.03087614,227.13,227.08,0.02859418]
[1738000963801,0.03087614,227.13,227.09,26.75614509]
[1738000964608,0.03087614,227.13,227.11,4.4049]
[1738000966106,4.4033,227.21,227.09,26.75614509]
[1738000966411,2.8161,227.28,227.09,26.75614509]
[1738000966598,2.8161,227.28,227.15,4.4042]
[1738000966798,2.8161,227.28,227.13,26.75614509]
[1738000967003,2.8161,227.28,227.09,26.75614509]
[1738000967301,4.4044,227.15,227.04,26.75614509]
[1738000967509,26.75614509,227.26,227.16,0.03177018]
[1738000967709,0.02995828,227.12,227.04,26.75614509]
[1738000967908,26.75614509,227.39,227.19,0.02955306]
[1738000968110,2.5675,227.35,227.17,26.75614509]
[1738000968311,1.4539,227.38,227.21,26.75614509]
[1738000968312,4.4002,227.37,227.21,26.75614509]
[1738000968507,2.5675,227.45,227.29,26.75614509]
[1738000968907,1.3157,227.45,227.29,26.75614509]
[1738000969108,0.031148,227.39,227.35,0.03011723]
[1738000970109,0.031148,227.39,227.36,26.75614509]
[1738000970503,0.031148,227.39,227.36,31.15624509]
[1738000970709,0.031148,227.39,227.35,0.03011723]
[1738000972214,0.031148,227.39,227.36,26.75614509]
[1738000972514,0.031148,227.39,227.35,0.03011723]
[1738000973106,0.031148,227.39,227.26,26.75614509]
[1738000973317,4.4006,227.35,227.23,4.4027]
[1738000973508,3.48,227.41,227.22,26.75614509]
[1738000973809,26.75614509,227.39,227.18,26.75614509]
[1738000974015,3.48,227.41,227.22,26.75614509]
[1738000974216,1.4181,227.38,227.22,26.75614509]
[1738000974411,1.4181,227.38,227.16,4.2106]
[1738000974412,0.03335353,227.34,227.29,0.03193978]
[1738000974616,1.4181,227.38,227.29,4.43353978]
[1738000974816,0.03243685,227.34,227.29,0.03193978]
[1738000976115,4.4009,227.33,227.29,0.03193978]
[1738000976313,0.03243685,227.34,227.29,0.03193978]
[1738000976617,0.03243685,227.34,227.3,26.75614509]
[1738000977012,0.03243685,227.34,227.32,4.401]
[1738000977219,1.3231,227.46,227.3,26.75614509]
[1738000977413,1.3231,227.46,227.36,26.75614509]
[1738000977718,4.3977,227.49,227.4,4.3995]
[1738000978217,1.3231,227.53,227.36,26.75614509]
[1738000978218,4.3977,227.5,227.41,4.3992]
[1738000978418,0.03256511,227.47,227.42,0.02812898]
[1738000979016,4.3988,227.44,227.42,0.02812898]
[1738000979216,0.03256511,227.47,227.31,2.826]
[1738000979619,4.3997,227.39,227.31,2.826]
[1738000979814,26.75614509,227.48,227.31,2.826]
[1738000980010,4.4012,227.32,227.26,26.75614509]
[1738000980319,4.4012,227.32,227.22,4.4028]
[1738000980320,3.46,227.41,227.22,26.75614509]
[1738000980522,0.03035112,227.31,227.27,0.03053271]
[1738000980917,26.75614509,227.39,227.18,26.75614509]
[1738000981219,0.02831581,227.31,227.27,0.03138054]
[1738000981621,2.6935,227.4,227.27,0.03138054]
[1738000981815,4.4014,227.3,227.27,0.03138054]
[1738000982018,29.44964509,227.4,227.27,0.03138054]
[1738000982225,0.0288646,227.31,227.27,0.03138054]
[1738000982522,2.6935,227.4,227.27,0.03138054]
[1738000982725,0.03021072,227.31,227.27,0.03138054]
[1738000983022,0.02818334,227.31,227.29,26.75614509]
[1738000983224,1.4211,227.47,227.29,26.75614509]
[1738000983419,5.796,227.47,227.39,4.3996]
[1738000983614,26.75614509,227.61,227.4,26.75614509]
[1738000983615,1.4211,227.54,227.4,26.75614509]
[1738000983819,2.8189,227.54,227.4,26.75614509]
[1738000984023,2.8189,227.54,227.41,4.3993]
[1738000984316,0.02998369,227.49,227.45,0.03296604]
[1738000986721,0.02998369,227.49,227.47,4.398]
[1738000986921,0.02998369,227.49,227.48,26.75614509]
[1738000987225,4.3957,227.6,227.51,4.3973]
[1738000987418,2.86,227.63,227.49,1.3969]
[1738000988020,4.396,227.58,227.5,4.3974]
[1738000988620,4.396,227.58,227.48,26.75614509]
[1738000988621,4.3969,227.54,227.52,0.03044747]
[1738000989219,0.02932078,227.56,227.52,26.78659256]
[1738000989420,4.3945,227.66,227.53,1.4349]
[1738000989622,1.3129,227.69,227.57,26.75614509]
[1738000989924,1.3129,227.69,227.53,1.4349]
[1738000990125,1.3129,227.69,227.56,26.75614509]
[1738000990527,0.03262161,227.65,227.6,26.7885749]
[1738000990921,0.03262161,227.65,227.61,4.3954]
[1738000991121,0.03262161,227.65,227.6,26.7885749]
[1738000991627,0.03262161,227.65,227.63,4.395]
[1738000992321,26.75614509,227.82,227.6,26.7885749]
[1738000992525,1.3433,227.81,227.64,26.75614509]
[1738000992924,4.3922,227.78,227.68,4.394]
[1738000993120,4.3922,227.78,227.68,26.75614509]
[1738000993626,0.02940728,227.75,227.71,0.03277328]
[1738000994027,26.75614509,227.72,227.37,26.75614509]
[1738000994224,4.395,227.63,227.52,1.4304]
[1738000994531,1.4367,227.71,227.52,1.4304]
[1738000994830,26.75614509,227.65,227.52,1.4304]
[1738000995228,26.78696147,227.61,227.4,26.75614509]
[1738000995436,26.78696147,227.61,227.45,1.3869]
[1738000995729,1.3433,227.64,227.45,1.3869]
[1738000995924,1.3433,227.64,227.48,26.75614509]
[1738000996124,26.75614509,227.69,227.48,26.75614509]
[1738000996323,4.3952,227.62,227.53,4.3969]
[1738000996528,0.03091305,227.61,227.56,0.03281748]
[1738000996737,26.75614509,227.6,227.45,1.3869]
[1738000996930,26.75614509,227.56,227.45,1.3869]
[1738000997129,26.75614509,227.56,227.41,1.4159]
[1738000997930,0.03185206,227.51,227.46,0.03315021]
[1738000999433,4.1571,227.66,227.46,0.03315021]
[1738000999636,2.8102,227.66,227.48,26.75614509]
[1738000999835,2.8102,227.66,227.49,2.8321]
[1738001000136,3.5,227.76,227.55,4.3965]
[1738001000339,2.7272,227.75,227.49,2.8321]
[1738001000540,2.7272,227.75,227.56,4.3963]
[1738001000738,0.02936257,227.61,227.57,0.0284529]
[1738001001140,2.7272,227.75,227.57,26.78459799]
[1738001001639,2.7272,227.75,227.57,26.75614509]
[1738001001932,26.75614509,227.7,227.49,288.8321]
[1738001002139,4.3957,227.6,227.53,4.3969]
[1738001002341,0.03372983,227.62,227.57,0.03354385]
[1738001002736,0.03372983,227.62,227.49,2.8321]
[1738001002737,26.75614509,227.62,227.49,2.8321]
[1738001002943,26.78539588,227.62,227.57,0.03148253]
[1738001003332,26.78539588,227.62,227.49,1.4138]
[1738001003540,2.833,227.61,227.41,1.3238]
[1738001003734,2.833,227.61,227.41,2.7403]
[1738001004434,0.03065878,227.53,227.49,0.03053036]
[1738001005143,0.03065878,227.53,227.36,1.381]
[1738001005340,0.03065878,227.53,227.36,2.8232]
[1738001005535,26.75614509,227.54,227.36,2.8232]
[1738001005734,2.833,227.61,227.4,26.75614509]
[1738001006444,0.03012594,227.53,227.48,0.03090704]
[1738001008841,4.42712594,227.53,227.48,0.03090704]
[1738001009243,0.03012594,227.53,227.48,0.03090704]
[1738001009439,4.3977,227.49,227.48,0.03090704]
[1738001009745,0.03012594,227.53,227.35,6.36874]
[1738001009746,26.75614509,227.5,227.35,6.36874]
[1738001009945,4.3989,227.43,227.35,10.76914]
[1738001010147,1.3655,227.49,227.35,6.36874]
[1738001010648,4.3986,227.45,227.36,4.4002]
[1738001010949,0.03026159,227.44,227.4,0.03203149]
[1738001012445,28.06544509,227.58,227.4,0.03203149]
[1738001012751,26.75614509,227.66,227.45,26.75614509]
[1738001013049,4.3954,227.61,227.54,4.3967]
[1738001013248,1.3093,227.68,227.49,26.75614509]
[1738001013744,0.02999534,227.61,227.56,0.02784145]
[1738001015751,4.42539534,227.61,227.56,0.02784145]
[1738001015953,0.02999534,227.61,227.56,0.02784145]
[1738001016451,4.42559534,227.61,227.56,0.02784145]
[1738001016651,0.02999534,227.61,227.56,0.02784145]
[1738001017753,4.42559534,227.61,227.56,0.02784145]
[1738001017953,0.02999534,227.61,227.56,0.02784145]
[1738001019159,0.02999534,227.61,227.58,4.3959]
[1738001019450,0.02999534,227.61,227.56,0.02784145]
[1738001019650,0.02999534,227.61,227.58,4.396]
[1738001019847,0.02999534,227.61,227.56,0.02784145]
[1738001020755,0.02999534,227.61,227.58,4.3959]
[1738001020954,0.02999534,227.61,227.56,0.02784145]
[1738001021357,4.42549534,227.61,227.56,0.02784145]
[1738001021656,0.02999534,227.61,227.56,0.02784145]
[1738001021848,4.3961,227.58,227.56,0.02784145]
[1738001022054,0.02999534,227.61,227.56,0.02784145]
[1738001024655,4.42559534,227.61,227.56,4.42404145]
[1738001025358,4.42559534,227.61,227.56,0.02784145]
[1738001025751,0.02999534,227.61,227.57,4.3961]
[1738001025952,26.75614509,227.74,227.56,0.02784145]
[1738001026156,26.75614509,227.74,227.49,26.75614509]
[1738001026453,4.3941,227.68,227.55,26.75614509]
[1738001026852,4.3941,227.68,227.63,4.395]
[1738001027262,0.03375851,227.68,227.63,0.02906016]
[1738001027759,4.42785851,227.68,227.63,0.02906016]
[1738001027959,0.03375851,227.68,227.63,0.02906016]
[1738001028557,0.03375851,227.68,227.67,4.3942]
[1738001030163,4.3923,227.78,227.73,4.3929]
[1738001030464,4.3923,227.78,227.6,1.3163]
[1738001030465,3.4,227.94,227.67,26.75614509]
[1738001030664,4.231,227.9,227.67,26.75614509]
[1738001031365,0.0290418,227.81,227.76,0.02825757]
[1738001031864,0.0290418,227.81,227.76,0.03021132]
[1738001032060,0.0290418,227.81,227.76,4.42271132]
[1738001032261,0.0290418,227.81,227.76,0.03021132]
[1738001032957,0.0290418,227.81,227.79,4.3919]
[1738001033468,0.0290418,227.81,227.8,4.3917]
[1738001033664,0.0290418,227.81,227.76,0.03021132]
[1738001033963,0.0290418,227.81,227.77,4.3923]
[1738001034259,0.0290418,227.81,227.76,0.03021132]
[1738001034458,0.0290418,227.81,227.8,4.3917]
[1738001037168,0.0290418,227.81,227.76,0.03021132]
[1738001037761,0.0290418,227.81,227.76,4.42271132]
[1738001038068,0.0290418,227.81,227.76,0.03021132]
[1738001038268,4.4207418,227.81,227.76,0.03021132]
[1738001038471,0.0290418,227.81,227.76,0.03021132]
[1738001038967,4.3921,227.78,227.76,0.03021132]
[1738001039169,0.0290418,227.81,227.76,0.03021132]
[1738001039671,4.392,227.79,227.76,0.03021132]
[1738001040369,0.0290418,227.81,227.76,0.03021132]
[1738001041167,0.0290418,227.81,227.8,4.3917]
[1738001042475,26.75614509,227.92,227.76,0.03021132]
[1738001042678,4.3901,227.89,227.76,1.45851132]
[1738001042873,4.3901,227.89,227.76,1.4283]
[1738001043375,4.3906,227.86,227.76,1.4283]
[1738001043779,0.03067748,227.83,227.79,0.0316321]
[1738001043973,0.03067748,227.83,227.8,4.3917]
[1738001044173,0.03067748,227.83,227.79,0.0316321]
[1738001045173,26.75614509,227.8,227.56,3.4]
[1738001045376,26.75614509,227.76,227.63,1.3853]
[1738001045576,1.4251,227.75,227.6,1.3709]
[1738001045977,26.75614509,227.72,227.59,4.3957]
[1738001046178,26.75614509,227.72,227.66,4.18764]
[1738001046378,26.75614509,227.68,227.67,1.274e-05]
[1738001046579,26.75614509,227.68,227.51,1.3276]
[1738001046773,4.3949,227.64,227.51,1.3276]
[1738001046975,26.75614509,227.7,227.51,1.3276]
[1738001047276,4.3962,227.57,227.48,1.3853]
[1738001047477,26.75614509,227.58,227.41,1.3709]
[1738001047779,0.03140575,227.55,227.5,0.031905]
[1738001048881,4.397,227.53,227.5,0.031905]
[1738001049072,0.03140575,227.55,227.5,0.031905]
[1738001050277,0.03140575,227.55,227.5,4.429305]
[1738001050484,0.03140575,227.55,227.5,0.031905]
[1738001050676,26.75614509,227.84,227.54,26.75614509]
[1738001050883,2.1688593,227.83,227.64,26.75614509]
[1738001051090,71.28700966,227.9,227.7,26.75614509]
[1738001051274,0.80730841,227.88,227.74,26.75614509]
[1738001051479,1.3614,227.89,227.74,26.75614509]
[1738001051983,0.03109679,227.84,227.79,0.03005758]
[1738001052784,4.42219679,227.84,227.79,0.03005758]
[1738001053187,0.03109679,227.84,227.79,0.03005758]
[1738001054685,4.42209679,227.84,227.79,0.03005758]
[1738001055988,4.3912,227.83,227.79,0.03005758]
[1738001056187,0.03109679,227.84,227.79,0.03005758]
[1738001057586,4.3916,227.81,227.79,0.03005758]
[1738001058389,0.03109679,227.84,227.69,1.91613]
[1738001058588,1.338,227.86,227.69,1.91613]
[1738001059388,4.3931,227.73,227.69,1.91613]
[1738001059586,1.338,227.86,227.69,1.91613]
[1738001059781,0.02891089,227.73,227.69,28.67227509]
[1738001060089,4.3921,227.78,227.75,0.03108544]
[1738001060388,4.3921,227.78,227.74,0.03029682]
[1738001061390,4.3923,227.77,227.74,0.03029682]
[1738001061787,4.3927,227.75,227.74,0.03029682]
[1738001062690,26.75614509,227.96,227.74,26.78644191]
[1738001062990,2.21050696,227.95,227.78,26.75614509]
[1738001063191,1.4035,227.95,227.78,26.75614509]
[1738001063489,1.4035,227.95,227.74,26.75614509]
[1738001063689,2.1906684,227.94,227.74,26.75614509]
[1738001063892,0.0276807,227.87,227.82,0.03362036]
[1738001064290,4.3911,227.83,227.82,0.03362036]
[1738001065390,0.0276807,227.87,227.7,28.07784509]
[1738001065587,0.80718812,227.91,227.7,28.07784509]
[1738001065790,26.75614509,227.88,227.7,26.75614509]
[1738001066094,26.75614509,227.84,227.69,1.91613]
[1738001066284,2.8573,227.83,227.69,1.91613]
[1738001066591,0.03004699,227.78,227.74,0.03271344]
[1738001071193,0.03004699,227.78,227.74,26.78885853]
[1738001071592,5.727,227.86,227.77,4.3923]
[1738001071794,1.3363,227.86,227.74,26.75614509]
[1738001072192,3.4,227.89,227.74,26.75614509]
[1738001072193,28.15784509,227.96,227.74,26.75614509]
[1738001072386,2.24164355,227.95,227.74,26.75614509]
[1738001072588,4.3902,227.88,227.82,0.0289038]
[1738001072790,0.02820166,227.87,227.82,0.0289038]
[1738001073790,4.3909,227.85,227.82,0.0289038]
[1738001073993,0.02820166,227.87,227.82,0.0289038]
[1738001074402,4.3911,227.83,227.82,0.0289038]
[1738001075701,4.3909,227.85,227.82,0.0289038]
[1738001076099,0.02820166,227.87,227.82,0.0289038]
[1738001077203,1.4346,227.95,227.86,26.75614509]
[1738001077403,6.186,228.04,227.86,26.75614509]
[1738001077602,2.16038759,228.03,227.86,26.75614509]
[1738001077802,0.80678759,228.02,227.9,26.75614509]
[1738001078003,1.3536,228.03,227.9,26.75614509]
[1738001078201,1.3536,228.03,227.91,1.3887]
[1738001078499,0.03195246,227.99,227.94,26.78788023]
[1738001079205,47.4441935,228.1,228.02,26.75614509]
[1738001079404,77.05783859,228.22,228.02,26.75614509]
[1738001079608,77.05783859,228.22,228.03,1.4338]
[1738001080204,4.3852,228.14,228.03,1.4338]
[1738001080403,0.0328487,228.12,228.08,0.03102425]
[1738001083008,4.3861,228.1,228.08,2.425e-05]
[1738001083509,0.0328487,228.12,228.08,2.425e-05]
[1738001084910,4.4184487,228.12,228.08,2.425e-05]
[1738001085110,0.0328487,228.12,228.08,2.425e-05]
[1738001085303,4.386,228.1,228.08,2.425e-05]
[1738001085503,0.0328487,228.12,228.08,2.425e-05]
[1738001086008,4.3861,228.1,228.08,2.425e-05]
[1738001087212,4.3862,228.09,228.08,2.425e-05]
[1738001088006,0.0328487,228.12,228.08,2.425e-05]
[1738001088007,4.4186487,228.12,228.08,2.425e-05]
[1738001088210,0.0328487,228.12,228.08,2.425e-05]
[1738001088715,4.3862,228.09,228.08,2.425e-05]
[1738001089012,0.0328487,228.12,228.08,2.425e-05]
[1738001089212,4.3862,228.09,228.08,2.425e-05]
[1738001098424,4.386,228.1,228.08,2.425e-05]
[1738001098722,0.0328487,228.12,228.08,2.425e-05]
[1738001099626,4.3861,228.1,228.08,2.425e-05]
[1738001099920,0.0328487,228.12,228.08,2.425e-05]
[1738001100311,4.3862,228.09,228.08,2.425e-05]
[1738001101318,0.0328487,228.12,228.08,2.425e-05]
[1738001102119,4.3858,228.11,228.08,2.425e-05]
[1738001102320,0.0328487,228.12,228.08,2.425e-05]
[1738001102521,0.0328487,228.12,228.08,16.25505849]
[1738001102720,5.19052399,228.19,228.08,16.25505849]
[1738001102917,1.3167,228.28,228.12,16.25503424]
[1738001103116,4.3835,228.23,228.14,4.3852]
[1738001103316,1.3167,228.28,228.12,16.25503424]
[1738001103520,0.80583613,228.27,228.12,16.25503424]
[1738001103727,4.3836,228.23,228.14,4.3852]
[1738001103926,0.03032176,228.22,228.17,0.03026085]
[1738001104322,16.25503424,228.18,227.88,16.25503424]
[1738001104517,16.25503424,228.06,227.89,0.87761639]
[1738001104724,16.25503424,227.98,227.89,0.87761639]
[1738001105028,16.25503424,227.94,227.72,1.361]
[1738001105226,1.3746,227.93,227.73,0.87823299]
[1738001105423,0.03017014,227.85,227.81,0.03289184]
[1738001108029,3.4,228.01,227.83,16.25503424]
[1738001108228,4.27715451,228.01,227.84,1.4523]
[1738001108424,0.87715451,228.01,227.84,1.4523]
[1738001109030,0.87715451,228.01,227.9,26.44232664]
[1738001109233,0.87715451,228.01,227.96,4.3885]
[1738001109435,0.03114802,227.98,227.94,26.44232664]
[1738001109634,3.4,228.12,227.95,1.4523]
[1738001110032,4.3859,228.11,227.95,1.4523]
[1738001110230,3.4,228.12,227.95,1.4523]
[1738001110431,4.3868,228.06,227.95,1.4523]
[1738001110635,26.44232664,228.06,227.86,26.44232664]
[1738001110835,0.03024003,228.03,227.98,0.03363067]
[1738001111033,26.44232664,228.06,227.98,0.03363067]
[1738001111233,4.27673154,228.12,227.98,0.03363067]
[1738001111234,0.03342308,228.03,227.98,0.03363067]
[1738001111530,0.03342308,228.03,227.87,4.3903]
[1738001111735,26.44232664,228.06,227.98,0.0287485]
[1738001112034,0.0317267,227.97,227.9,4.3898]
[1738001112228,1.3683,228.09,228.0,0.03237252]
[1738001112431,1.3683,228.09,227.91,1.333]
[1738001112633,0.03142558,228.07,228.02,0.0322876]
[1738001112833,1.3683,228.09,228.02,0.0322876]
[1738001113035,0.03024299,228.07,228.02,0.0322876]
[1738001119640,1.3172,228.17,228.02,26.47461424]
[1738001119837,4.743,228.24,228.03,1.3435]
[1738001120039,0.80600501,228.23,228.06,26.44232664]
[1738001120234,1.3454,228.26,228.06,26.44232664]
[1738001120442,0.80590795,228.25,228.06,26.44232664]
[1738001120641,0.80590795,228.25,228.03,27.78582664]
[1738001120939,0.03322941,228.18,228.13,0.02791405]
[1738001122639,6.06754164,228.31,228.13,26.47024069]
[1738001122838,6.06754164,228.31,228.14,1.4241]
[1738001123439,6.06754164,228.31,228.18,4.3844]
[1738001123645,6.06754164,228.31,228.14,1.4241]
[1738001123847,0.0321254,228.27,228.22,0.03157051]
[1738001124744,4.3833,228.24,228.22,0.03157051]
[1738001124946,0.0321254,228.27,228.22,0.03157051]